bitfinex/quotes_BTCUSD_20230117
["timestamp","ask_amount","ask_price","bid_price","bid_amount"]
[1673928446892,3.60267381,21129.0,21128.0,0.00535644]
[1673928447148,3.17721023,21129.0,21128.0,0.00535644]
[1673928447395,3.95835375,21129.0,21128.0,0.03235644]
[1673928447668,4.07456867,21129.0,21128.0,0.03235644]
[1673928447927,4.06756867,21129.0,21128.0,0.00535644]
[1673928448442,3.9511446,21129.0,21128.0,0.00535644]
[1673928448704,5.84982711,21129.0,21128.0,0.00535644]
[1673928448966,4.0151446,21129.0,21128.0,0.00835644]
[1673928449260,4.79316521,21129.0,21128.0,0.00835644]
[1673928449513,4.01906304,21129.0,21128.0,0.00835644]
[1673928449765,5.73973372,21129.0,21128.0,0.00835644]
[1673928450016,5.67573372,21129.0,21128.0,0.00535644]
[1673928450273,5.67573372,21129.0,21128.0,6.44e-06]
[1673928450539,7.12088541,21129.0,21128.0,0.00300644]
[1673928450803,7.12088541,21129.0,21127.0,0.00775479]
[1673928450804,0.1,21128.0,21127.0,0.00775479]
[1673928451066,4.94823181,21128.0,21127.0,0.00775479]
[1673928451324,4.4702112,21128.0,21127.0,0.00775479]
[1673928451860,5.89097745,21128.0,21127.0,0.00775479]
[1673928452102,6.36507962,21128.0,21127.0,0.00775479]
[1673928452631,6.84310023,21128.0,21127.0,0.00775479]
[1673928452885,4.94431337,21128.0,21127.0,0.00775479]
[1673928453186,5.00731337,21128.0,21127.0,0.01075479]
[1673928453745,4.82340891,21128.0,21127.0,0.01075479]
[1673928453991,4.45200891,21128.0,21127.0,0.01075479]
[1673928455475,4.45206891,21128.0,21127.0,0.01075479]
[1673928456499,4.9292706,21128.0,21127.0,0.01075479]
[1673928457048,5.15052637,21128.0,21127.0,0.01075479]
[1673928457754,4.9292706,21128.0,21127.0,0.01075479]
[1673928458502,4.72502919,21128.0,21126.0,0.00470488]
[1673928458776,4.1441623,21127.0,21126.0,0.00470488]
[1673928459303,2.90046443,21127.0,21126.0,0.00470488]
[1673928459599,2.90046443,21127.0,21126.0,0.00670488]
[1673928460059,3.20046443,21127.0,21126.0,0.00470488]
[1673928460308,3.26546443,21127.0,21126.0,0.00670488]
[1673928460572,3.61939665,21127.0,21126.0,0.00670488]
[1673928460825,4.29780428,21127.0,21126.0,0.00670488]
[1673928461067,4.09345789,21127.0,21126.0,0.00670488]
[1673928461335,4.57065958,21127.0,21126.0,0.00670488]
[1673928461590,5.04868019,21127.0,21126.0,0.00670488]
[1673928461849,6.46957163,21127.0,21126.0,0.00670488]
[1673928462366,6.58057163,21127.0,21126.0,0.00670488]
[1673928462904,4.68165958,21127.0,21126.0,0.00670488]
[1673928463672,4.68171958,21127.0,21126.0,0.00670488]
[1673928464455,4.68171958,21127.0,21126.0,4.88e-06]
[1673928464727,5.10646684,21127.0,21126.0,4.88e-06]
[1673928464938,4.68171958,21127.0,21126.0,4.88e-06]
[1673928465687,4.41173634,21127.0,21126.0,4.88e-06]
[1673928466436,4.20790425,21127.0,21126.0,4.88e-06]
[1673928468499,3.85391203,21127.0,21125.0,0.00769967]
[1673928468758,2.19546724,21126.0,21125.0,0.00769967]
[1673928469004,2.72596683,21126.0,21125.0,0.00769967]
[1673928469515,3.15066724,21126.0,21125.0,0.00769967]
[1673928469841,3.21766724,21126.0,21125.0,0.00969967]
[1673928470548,3.15066724,21126.0,21125.0,0.00769967]
[1673928470762,3.21766724,21126.0,21125.0,0.00969967]
[1673928471322,3.99176941,21126.0,21125.0,0.00969967]
[1673928471573,3.567129,21126.0,21125.0,0.00969967]
[1673928472086,3.99182941,21126.0,21125.0,0.00969967]
[1673928474582,3.8139245,21126.0,21125.0,0.00969967]
[1673928475605,3.38922409,21126.0,21125.0,0.00969967]
[1673928475870,3.9249245,21126.0,21125.0,0.00969967]
[1673928476632,3.9248645,21126.0,21125.0,0.00969967]
[1673928476900,4.40206619,21126.0,21125.0,0.00969967]
[1673928477166,4.04752393,21126.0,21125.0,0.00969967]
[1673928477913,4.47229088,21126.0,21125.0,0.00969967]
[1673928478162,3.15082887,21126.0,21125.0,0.00969967]
[1673928478688,3.03882887,21126.0,21125.0,0.00969967]
[1673928478946,2.96801214,21126.0,21125.0,0.00969967]
[1673928479207,2.86801214,21126.0,21125.0,0.00969967]
[1673928479462,2.40206192,21126.0,21125.0,0.00969967]
[1673928480032,3.03926165,21126.0,21125.0,0.00969967]
[1673928480254,2.6852618,21126.0,21125.0,0.00969967]
[1673928480515,2.756075,21126.0,21125.0,0.00969967]
[1673928480778,2.40206192,21126.0,21125.0,0.00969967]
[1673928481320,2.75618275,21126.0,21125.0,0.00969967]
[1673928481561,2.40206192,21126.0,21125.0,0.00969967]
[1673928482079,2.75616862,21126.0,21125.0,0.00969967]
[1673928482583,2.40206192,21126.0,21125.0,0.00969967]
[1673928482841,2.82682887,21126.0,21125.0,0.00969967]
[1673928483615,2.7563854,21126.0,21125.0,0.00969967]
[1673928484136,2.40206192,21126.0,21125.0,0.00969967]
[1673928484392,2.82682887,21126.0,21125.0,0.00969967]
[1673928486711,3.27577839,21126.0,21125.0,0.00969967]
[1673928486966,3.38777839,21126.0,21125.0,0.00969967]
[1673928487782,2.93882887,21126.0,21125.0,0.00969967]
[1673928488547,2.51406192,21126.0,21125.0,0.00969967]
[1673928489084,2.5845206,21126.0,21125.0,0.00969967]
[1673928489334,2.51406192,21126.0,21125.0,0.00969967]
[1673928489612,2.93965001,21126.0,21125.0,0.00969967]
[1673928491906,2.51406192,21126.0,21125.0,0.00969967]
[1673928492413,2.40306192,21126.0,21125.0,0.00969967]
[1673928493202,2.40306192,21126.0,21125.0,0.00961224]
[1673928493694,2.8287129,21126.0,21125.0,0.00961224]
[1673928500167,2.56827409,21126.0,21125.0,0.00961224]
[1673928500641,1.92971192,21126.0,21125.0,0.00961224]
[1673928501171,2.56805156,21126.0,21125.0,0.00961224]
[1673928502215,2.28423893,21126.0,21125.0,0.00961224]
[1673928503496,1.9296058,21126.0,21125.0,0.00961224]
[1673928507294,2.28419658,21126.0,21125.0,0.00961224]
[1673928508298,1.9296058,21126.0,21125.0,0.00961224]
[1673928511307,2.35525678,21126.0,21125.0,0.00961224]
[1673928511568,1.9296058,21126.0,21125.0,0.00961224]
[1673928512348,2.35525678,21126.0,21125.0,0.00961224]
[1673928515384,2.79735471,21126.0,21125.0,0.00961224]
[1673928515672,2.37170373,21126.0,21125.0,0.00961224]
[1673928516132,2.79735471,21126.0,21125.0,0.00961224]
[1673928516664,1.9296058,21126.0,21125.0,0.00961224]
[1673928516953,2.35535601,21126.0,21125.0,0.00961224]
[1673928517239,1.9296058,21126.0,21125.0,0.00961224]
[1673928517715,2.35535601,21126.0,21125.0,0.00961224]
[1673928518228,2.35535198,21126.0,21125.0,0.00961224]
[1673928518752,2.28437768,21126.0,21125.0,0.00961224]
[1673928519003,2.0335241,21126.0,21125.0,0.00961224]
[1673928519259,2.3554711,21126.0,21125.0,0.00961224]
[1673928519521,2.2434711,21126.0,21125.0,0.00961224]
[1673928522036,1.81772492,21126.0,21125.0,0.00961224]
[1673928522534,1.81772492,21126.0,21125.0,0.00954399]
[1673928524564,2.2434711,21126.0,21125.0,0.00954399]
[1673928526338,2.25984428,21126.0,21125.0,0.00954399]
[1673928528632,2.35452267,21126.0,21125.0,0.00954399]
[1673928532817,1.92872492,21126.0,21125.0,0.00954399]
[1673928533323,1.60677792,21126.0,21125.0,0.00954399]
[1673928533573,2.03257939,21126.0,21125.0,0.00954399]
[1673928533827,2.35452639,21126.0,21125.0,0.00954399]
[1673928535583,2.80145466,21126.0,21125.0,0.00954399]
[1673928536646,1.92872492,21126.0,21125.0,0.00954399]
[1673928540654,2.35459351,21126.0,21125.0,0.00954399]
[1673928541415,1.92872492,21126.0,21125.0,0.00954399]
[1673928543820,2.35459753,21126.0,21125.0,0.00954399]
[1673928544328,1.92872492,21126.0,21125.0,0.00954399]
[1673928544828,1.92872492,21126.0,21125.0,0.00946624]
[1673928546659,2.35456645,21126.0,21125.0,0.00946624]
[1673928547410,1.92872492,21126.0,21125.0,0.00946624]
[1673928548615,2.04072492,21126.0,21125.0,0.00946624]
[1673928551490,2.46655462,21126.0,21125.0,0.00946624]
[1673928551760,1.81772492,21126.0,21125.0,0.00946624]
[1673928552019,1.49577792,21126.0,21125.0,0.00946624]
[1673928554560,1.92160762,21126.0,21125.0,0.00946624]
[1673928554775,2.24355462,21126.0,21125.0,0.00946624]
[1673928555536,1.81772492,21126.0,21125.0,0.00946624]
[1673928556523,1.49577792,21126.0,21125.0,0.00946624]
[1673928558804,1.60727792,21126.0,21125.0,0.00946624]
[1673928562311,1.92922492,21126.0,21125.0,0.00946624]
[1673928562572,1.60727792,21126.0,21125.0,0.00946624]
[1673928565526,2.29652496,21126.0,21125.0,0.00946624]
[1673928566023,2.72231865,21126.0,21125.0,0.00946624]
[1673928566521,2.29652496,21126.0,21125.0,0.00946624]
[1673928567032,1.92922492,21126.0,21125.0,0.00946624]
[1673928569705,1.92922492,21126.0,21125.0,0.00937074]
[1673928573788,2.35502588,21126.0,21125.0,0.00937074]
[1673928574033,1.92922492,21126.0,21125.0,0.00937074]
[1673928575765,2.3550218,21126.0,21125.0,0.00937074]
[1673928576279,1.92922492,21126.0,21125.0,0.00937074]
[1673928577031,2.35502308,21126.0,21125.0,0.00937074]
[1673928578764,2.46702308,21126.0,21125.0,0.00937074]
[1673928579789,2.04122492,21126.0,21125.0,0.00937074]
[1673928580063,2.67345482,21126.0,21125.0,0.00937074]
[1673928580313,2.19543421,21126.0,21125.0,0.00937074]
[1673928580575,2.51924553,21126.0,21125.0,0.00937074]
[1673928580834,2.04122492,21126.0,21125.0,0.00937074]
[1673928581096,2.51924553,21126.0,21125.0,0.00937074]
[1673928581354,2.81924553,21126.0,21125.0,0.00937074]
[1673928581624,4.21894738,21126.0,21125.0,0.00937074]
[1673928581876,4.21894738,21126.0,21125.0,7.4e-07]
[1673928582152,3.7398667,21126.0,21125.0,7.4e-07]
[1673928582639,3.40452878,21126.0,21125.0,7.4e-07]
[1673928582898,0.1,21125.0,21123.0,0.00798533]
[1673928583158,3.32717703,21125.0,21123.0,0.00798533]
[1673928583940,3.6160408,21125.0,21123.0,0.00798533]
[1673928584163,3.22198269,21125.0,21124.0,0.0127791]
[1673928584719,2.93311892,21125.0,21124.0,0.0127791]
[1673928585024,3.36008224,21125.0,21124.0,0.0127791]
[1673928585745,3.36014224,21125.0,21124.0,0.0127791]
[1673928586020,3.83920035,21125.0,21124.0,0.0127791]
[1673928587669,3.75420035,21125.0,21124.0,0.0117791]
[1673928587920,3.84520035,21125.0,21124.0,0.0117791]
[1673928588177,3.54520035,21125.0,21124.0,0.0117791]
[1673928588431,3.84520035,21125.0,21124.0,0.0117791]
[1673928589234,3.7916187,21125.0,21124.0,0.0117791]
[1673928589752,3.84520035,21125.0,21124.0,0.0117791]
[1673928589989,4.15018084,21125.0,21124.0,0.0117791]
[1673928590216,5.57091216,21125.0,21124.0,0.0117791]
[1673928590995,6.49540413,21125.0,21124.0,0.0117791]
[1673928591242,6.01634602,21125.0,21124.0,0.0117791]
[1673928591513,5.68099574,21125.0,21124.0,0.0117791]
[1673928591759,6.15966108,21125.0,21124.0,0.0117791]
[1673928592028,5.85468059,21125.0,21124.0,0.0117791]
[1673928592590,4.08068337,21125.0,21124.0,0.0117791]
[1673928592910,3.95528393,21125.0,21124.0,0.0117791]
[1673928593044,5.8549604,21125.0,21124.0,0.0117791]
[1673928594372,5.5549604,21125.0,21124.0,0.0117791]
[1673928594624,5.8549604,21125.0,21124.0,0.0117791]
[1673928595331,5.37629506,21125.0,21124.0,0.0117791]
[1673928595596,5.8549604,21125.0,21124.0,0.0117791]
[1673928595875,5.37629506,21125.0,21124.0,0.0117791]
[1673928596381,5.85039723,21125.0,21124.0,0.0117791]
[1673928597365,5.55039723,21125.0,21124.0,0.0117791]
[1673928597836,6.02906257,21125.0,21124.0,0.0117791]
[1673928598087,5.55039723,21125.0,21124.0,0.0117791]
[1673928598341,5.85039723,21125.0,21124.0,0.0117791]
[1673928598616,5.73839723,21125.0,21124.0,0.0117791]
[1673928598863,6.21706257,21125.0,21124.0,0.0117791]
[1673928599376,5.91706257,21125.0,21124.0,0.0117791]
[1673928599598,4.96429506,21125.0,21124.0,0.0117791]
[1673928599870,3.54328393,21125.0,21124.0,0.0117791]
[1673928600089,4.32194927,21125.0,21124.0,0.0117791]
[1673928600340,4.02194927,21125.0,21124.0,0.0117791]
[1673928600606,3.54328393,21125.0,21124.0,0.0117791]
[1673928601375,4.0173861,21125.0,21124.0,0.0117791]
[1673928601651,4.49605144,21125.0,21124.0,0.0117791]
[1673928601889,3.54328393,21125.0,21124.0,0.0117791]
[1673928602391,3.84328393,21125.0,21124.0,0.0117791]
[1673928603630,4.26869323,21125.0,21124.0,0.0117791]
[1673928604633,3.84328393,21125.0,21124.0,0.0117791]
[1673928605122,3.84328393,21125.0,21124.0,0.0117181]
[1673928605636,3.54328393,21125.0,21124.0,0.0117181]
[1673928606387,3.84328393,21125.0,21124.0,0.0117181]
[1673928608670,4.3173861,21125.0,21124.0,0.0117181]
[1673928609461,4.0173861,21125.0,21124.0,0.0117181]
[1673928610524,3.54328393,21125.0,21124.0,0.0117181]
[1673928612805,3.84328393,21125.0,21124.0,0.0117181]
[1673928614056,4.26881791,21125.0,21124.0,0.0117181]
[1673928614845,3.96881791,21125.0,21124.0,0.0117181]
[1673928615104,4.26881791,21125.0,21124.0,0.0117181]
[1673928615363,4.66473206,21125.0,21124.0,0.0117181]
[1673928615663,4.36473206,21125.0,21124.0,0.0117181]
[1673928615859,3.3711595,21125.0,21124.0,0.0117181]
[1673928616118,3.37115412,21125.0,21124.0,0.0117181]
[1673928616373,2.62363524,21125.0,21124.0,0.0117181]
[1673928616624,3.04917807,21125.0,21124.0,0.0117181]
[1673928616870,3.37112507,21125.0,21124.0,0.0117181]
[1673928617124,3.05767807,21125.0,21124.0,0.0117181]
[1673928617376,2.63213524,21125.0,21124.0,0.0117181]
[1673928617844,3.05777423,21125.0,21124.0,0.0117181]
[1673928618340,3.37972123,21125.0,21124.0,0.0117181]
[1673928618591,2.95408224,21125.0,21124.0,0.0117181]
[1673928618835,3.37973301,21125.0,21124.0,0.0117181]
[1673928619053,2.95408224,21125.0,21124.0,0.0117181]
[1673928619839,2.63213524,21125.0,21124.0,0.0117181]
[1673928620591,2.95408224,21125.0,21124.0,0.0117181]
[1673928620845,2.63213524,21125.0,21124.0,0.0117181]
[1673928621066,2.95408224,21125.0,21124.0,0.0117181]
[1673928622708,2.63213524,21125.0,21124.0,0.0117181]
[1673928623484,2.86308224,21125.0,21124.0,0.0117181]
[1673928623962,2.62413524,21125.0,21124.0,0.0127181]
[1673928625926,3.04990761,21125.0,21124.0,0.0127181]
[1673928626144,3.04982184,21125.0,21124.0,0.0127181]
[1673928628151,2.39340442,21125.0,21124.0,0.0127181]
[1673928628429,2.67710447,21125.0,21124.0,0.0127181]
[1673928629134,2.46444984,21125.0,21124.0,0.0127181]
[1673928629613,2.39329478,21125.0,21124.0,0.0127181]
[1673928630279,2.46444984,21125.0,21124.0,0.0127181]
[1673928630747,2.39330105,21125.0,21124.0,0.0127181]
[1673928631055,2.03017747,21125.0,21124.0,0.0127181]
[1673928631302,2.35603561,21125.0,21124.0,0.0127181]
[1673928631553,2.71064743,21125.0,21124.0,0.0127181]
[1673928631816,2.28487506,21125.0,21124.0,0.0127181]
[1673928632066,2.35603561,21125.0,21124.0,0.0127181]
[1673928632354,1.93026324,21125.0,21124.0,0.0127181]
[1673928632592,2.35603561,21125.0,21124.0,0.0127181]
[1673928633196,1.93026324,21125.0,21124.0,0.0127181]
[1673928633661,2.35603561,21125.0,21124.0,0.0127181]
[1673928633918,1.93026324,21125.0,21124.0,0.0127181]
[1673928634392,2.35603561,21125.0,21124.0,0.0127181]
[1673928635099,2.28489737,21125.0,21124.0,0.0127181]
[1673928635509,2.35603561,21125.0,21124.0,0.0127181]
[1673928639974,2.2849385,21125.0,21124.0,0.0127181]
[1673928640935,2.56863911,21125.0,21124.0,0.0127181]
[1673928641144,2.2849385,21125.0,21124.0,0.0127181]
[1673928641390,2.56863841,21125.0,21124.0,0.0127181]
[1673928641822,1.93026324,21125.0,21124.0,0.0127181]
[1673928642409,2.35603561,21125.0,21124.0,0.0127181]
[1673928645482,1.88266361,21125.0,21124.0,0.0127181]
[1673928645745,2.09526661,21125.0,21124.0,0.0127181]
[1673928646013,1.81154389,21125.0,21124.0,0.0127181]
[1673928646562,1.88266361,21125.0,21124.0,0.0127181]
[1673928647370,1.8115551,21125.0,21124.0,0.0127181]
[1673928647899,1.45689124,21125.0,21124.0,0.0127181]
[1673928648660,1.88266361,21125.0,21124.0,0.01265176]
[1673928649654,1.8116265,21125.0,21124.0,0.01265176]
[1673928650694,1.88266361,21125.0,21124.0,0.01265176]
[1673928652020,1.88266361,21125.0,21124.0,0.01272178]
[1673928652242,1.45689124,21125.0,21124.0,0.01265176]
[1673928652505,2.09542363,21125.0,21124.0,0.01265176]
[1673928653269,1.88266361,21125.0,21124.0,0.01265176]
[1673928653791,1.81163632,21125.0,21124.0,0.01265176]
[1673928654306,1.72863632,21125.0,21124.0,0.01165176]
[1673928654561,1.80363632,21125.0,21124.0,0.01365176]
[1673928654828,2.08741706,21125.0,21124.0,0.01365176]
[1673928655091,1.73267198,21125.0,21124.0,0.01365176]
[1673928655350,2.08741706,21125.0,21124.0,0.01365176]
[1673928655602,1.44889124,21125.0,21124.0,0.01372178]
[1673928655851,1.44889124,21125.0,21124.0,0.01365176]
[1673928656878,1.87466361,21125.0,21124.0,0.01365176]
[1673928657104,1.80362144,21125.0,21124.0,0.01365176]
[1673928657914,2.08740384,21125.0,21124.0,0.01365176]
[1673928659403,2.08736288,21125.0,21124.0,0.01365176]
[1673928659656,1.44889124,21125.0,21124.0,0.01365176]
[1673928660470,1.87466361,21125.0,21124.0,0.01365176]
[1673928660720,2.19661061,21125.0,21124.0,0.01365176]
[1673928660970,1.87466361,21125.0,21124.0,0.01365176]
[1673928661462,1.44889124,21125.0,21124.0,0.01365176]
[1673928661999,1.87466361,21125.0,21124.0,0.01365176]
[1673928662242,1.44889124,21125.0,21124.0,0.01365176]
[1673928662492,1.87466361,21125.0,21124.0,0.01365176]
[1673928662995,1.80365761,21125.0,21124.0,0.01365176]
[1673928664814,1.77083824,21125.0,21124.0,0.01365176]
[1673928665097,2.24421024,21125.0,21124.0,0.01365176]
[1673928665364,3.04480482,21125.0,21124.0,0.01365176]
[1673928666152,2.97842746,21125.0,21124.0,0.01365176]
[1673928666660,2.67842746,21125.0,21124.0,0.01365176]
[1673928667987,2.25271024,21125.0,21124.0,0.01365176]
[1673928668761,2.36421024,21125.0,21124.0,0.01365176]
[1673928669687,2.66421024,21125.0,21124.0,0.01365176]
[1673928670676,2.36421024,21125.0,21124.0,0.01165176]
[1673928670897,2.37921024,21125.0,21124.0,0.01165176]
[1673928671161,2.67921024,21125.0,21124.0,0.01165176]
[1673928671930,2.37921024,21125.0,21124.0,0.01165176]
[1673928672445,2.37921024,21125.0,21124.0,0.01158818]
[1673928674417,2.80486096,21125.0,21124.0,0.01158818]
[1673928677363,2.37921024,21125.0,21124.0,0.01158818]
[1673928677635,2.8048232,21125.0,21124.0,0.01158818]
[1673928678107,2.37921024,21125.0,21124.0,0.01158818]
[1673928678362,2.85331241,21125.0,21124.0,0.01158818]
[1673928678614,2.37921024,21125.0,21124.0,0.00658818]
[1673928679686,2.67921024,21125.0,21124.0,0.00658818]
[1673928681062,2.37921024,21125.0,21124.0,0.00658818]
[1673928681512,2.37921024,21125.0,21124.0,0.00327448]
[1673928686919,2.80473333,21125.0,21124.0,0.00327448]
[1673928687458,2.37921024,21125.0,21124.0,0.00327448]
[1673928688708,2.69401571,21125.0,21124.0,0.00327448]
[1673928691116,3.1195454,21125.0,21124.0,0.00327448]
[1673928693218,2.69401571,21125.0,21124.0,0.00327448]
[1673928693978,2.37921024,21125.0,21124.0,0.00327448]
[1673928694235,2.80482943,21125.0,21124.0,0.00327448]
[1673928694504,2.37921024,21125.0,21124.0,0.00327448]
[1673928696175,2.80486188,21125.0,21124.0,0.00327448]
[1673928697932,2.37141488,21125.0,21124.0,0.00327448]
[1673928698199,2.30046733,21125.0,21124.0,0.00327448]
[1673928698719,2.37141488,21125.0,21124.0,0.00327448]
[1673928699735,1.94576324,21125.0,21124.0,0.00327448]
[1673928700249,2.37141488,21125.0,21124.0,0.00327448]
[1673928700501,2.37134211,21125.0,21124.0,0.00327448]
[1673928703171,1.94569047,21125.0,21124.0,0.00327448]
[1673928704239,2.37134211,21125.0,21124.0,0.00327448]
[1673928705061,1.94569047,21125.0,21124.0,0.00327448]
[1673928705314,2.37134211,21125.0,21124.0,0.00327448]
[1673928705567,1.94569047,21125.0,21124.0,0.00327448]
[1673928705828,2.37134211,21125.0,21124.0,0.00327448]
[1673928706625,1.94569047,21125.0,21124.0,0.00327448]
[1673928707414,2.37134211,21125.0,21124.0,0.00327448]
[1673928710387,2.30042555,21125.0,21124.0,0.00327448]
[1673928711132,2.37134211,21125.0,21124.0,0.00327448]
[1673928711348,2.69328911,21125.0,21124.0,0.00327448]
[1673928711629,2.37134211,21125.0,21124.0,0.00327448]
[1673928712831,1.94569047,21125.0,21124.0,0.00327448]
[1673928713571,2.37134211,21125.0,21124.0,0.00327448]
[1673928713834,2.69328911,21125.0,21124.0,0.00327448]
[1673928715006,2.26763747,21125.0,21124.0,0.00327448]
[1673928715721,2.69328911,21125.0,21124.0,0.00327448]
[1673928716976,2.21991711,21125.0,21124.0,0.00327448]
[1673928717238,2.69328911,21125.0,21124.0,0.00327448]
[1673928717496,2.37963747,21125.0,21124.0,0.00327448]
[1673928717777,3.4810042,21125.0,21124.0,0.00327448]
[1673928718302,3.05528531,21125.0,21124.0,0.00327448]
[1673928719844,2.37963747,21125.0,21124.0,0.00327448]
[1673928722056,2.80536878,21125.0,21124.0,0.00327448]
[1673928723660,2.80536878,21125.0,21124.0,0.00318785]
[1673928724183,2.37963747,21125.0,21124.0,0.00318785]
[1673928725465,3.10541913,21125.0,21124.0,0.00318785]
[1673928726478,3.15830281,21125.0,21124.0,0.00318785]
[1673928727659,4.79365994,21125.0,21124.0,0.00318785]
[1673928728128,5.73585522,21125.0,21124.0,0.00318785]
[1673928728384,3.60419243,21125.0,21124.0,0.00318785]
[1673928728920,3.26883916,21125.0,21124.0,0.00318785]
[1673928729930,3.74782576,21125.0,21124.0,0.00318785]
[1673928730179,4.08310426,21125.0,21124.0,0.00318785]
[1673928731350,3.60411766,21125.0,21124.0,0.00318785]
[1673928731620,4.08308452,21125.0,21124.0,0.00318785]
[1673928731883,4.55718669,21125.0,21124.0,0.00318785]
[1673928732146,5.97804731,21125.0,21124.0,0.00318785]
[1673928732373,5.9781052,21125.0,21124.0,0.00318785]
[1673928732634,5.64276881,21125.0,21124.0,0.00318785]
[1673928732881,4.22190819,21125.0,21124.0,0.00318785]
[1673928733131,3.74294133,21125.0,21124.0,0.00318785]
[1673928733865,3.97963133,21125.0,21124.0,0.00318785]
[1673928734138,3.74294133,21125.0,21124.0,0.00318785]
[1673928734383,3.97963133,21125.0,21124.0,0.00318785]
[1673928734603,4.31491094,21125.0,21124.0,0.00318785]
[1673928735046,4.31491094,21125.0,21124.0,7.85e-06]
[1673928735532,4.79370544,21125.0,21124.0,7.85e-06]
[1673928735813,6.21456606,21125.0,21124.0,7.85e-06]
[1673928736065,5.87928645,21125.0,21124.0,7.85e-06]
[1673928736347,5.40049195,21125.0,21124.0,7.85e-06]
[1673928736596,3.97963133,21125.0,21124.0,7.85e-06]
[1673928737077,4.31486135,21125.0,21124.0,7.85e-06]
[1673928737329,3.97963133,21125.0,21124.0,7.85e-06]
[1673928737574,4.793567,21125.0,21124.0,7.85e-06]
[1673928737831,5.40496096,21125.0,21124.0,7.85e-06]
[1673928738060,3.98410034,21125.0,21124.0,7.85e-06]
[1673928738591,3.50542833,21125.0,21124.0,7.85e-06]
[1673928739106,3.98407859,21125.0,21124.0,7.85e-06]
[1673928739646,3.50542833,21125.0,21124.0,7.85e-06]
[1673928740169,3.63538859,21125.0,21124.0,7.85e-06]
[1673928740764,3.58218131,21125.0,21124.0,7.85e-06]
[1673928741172,3.63538859,21125.0,21124.0,7.85e-06]
[1673928741416,3.33538859,21125.0,21124.0,7.85e-06]
[1673928742216,3.28217809,21125.0,21124.0,7.85e-06]
[1673928742738,3.15673833,21125.0,21124.0,7.85e-06]
[1673928743248,2.85673833,21125.0,21124.0,7.85e-06]
[1673928743492,4.27759895,21125.0,21124.0,7.85e-06]
[1673928743777,2.85673833,21125.0,21124.0,7.85e-06]
[1673928744748,4.44947199,21125.0,21124.0,7.85e-06]
[1673928745004,3.97082173,21125.0,21124.0,7.85e-06]
[1673928745521,4.44947199,21125.0,21124.0,7.85e-06]
[1673928746233,4.10949076,21125.0,21124.0,7.85e-06]
[1673928746473,4.44950546,21125.0,21124.0,7.85e-06]
[1673928746724,4.44949686,21125.0,21124.0,7.85e-06]
[1673928747241,4.10949076,21125.0,21124.0,7.85e-06]
[1673928747459,4.44952724,21125.0,21124.0,7.85e-06]
[1673928747712,4.10949076,21125.0,21124.0,7.85e-06]
[1673928747966,3.63538859,21125.0,21124.0,7.85e-06]
[1673928748208,3.15673833,21125.0,21124.0,7.85e-06]
[1673928748462,3.63538859,21125.0,21124.0,7.85e-06]
[1673928748706,3.74688859,21125.0,21124.0,7.85e-06]
[1673928749478,3.26823833,21125.0,21124.0,7.85e-06]
[1673928750983,3.74706862,21125.0,21124.0,7.85e-06]
[1673928751226,3.26823833,21125.0,21124.0,7.85e-06]
[1673928751456,3.7423405,21125.0,21124.0,7.85e-06]
[1673928752175,3.74706917,21125.0,21124.0,7.85e-06]
[1673928752661,3.26823833,21125.0,21124.0,7.85e-06]
[1673928752910,3.74710551,21125.0,21124.0,7.85e-06]
[1673928754650,3.26823833,21125.0,21124.0,7.85e-06]
[1673928754896,3.74712785,21125.0,21124.0,7.85e-06]
[1673928755405,3.26823833,21125.0,21124.0,7.85e-06]
[1673928755957,3.7423405,21125.0,21124.0,7.85e-06]
[1673928756182,4.22123002,21125.0,21124.0,7.85e-06]
[1673928756871,3.74712785,21125.0,21124.0,7.85e-06]
[1673928758557,0.19455438,21124.0,21123.0,0.00798533]
[1673928758811,3.1974973,21124.0,21123.0,0.00798533]
[1673928759064,3.1196973,21124.0,21123.0,0.00798533]
[1673928759811,3.4196973,21124.0,21123.0,0.00798533]
[1673928760306,3.5106973,21124.0,21123.0,0.00798533]
[1673928760553,3.0317457,21124.0,21123.0,0.00798533]
[1673928761813,3.2106973,21124.0,21123.0,0.00798533]
[1673928762029,3.45745775,21124.0,21123.0,0.00798533]
[1673928762277,2.7317457,21124.0,21123.0,0.00798533]
[1673928762492,3.0317457,21124.0,21123.0,0.00798533]
[1673928762752,3.5106973,21124.0,21123.0,0.00798533]
[1673928764021,3.5107573,21124.0,21123.0,0.00798533]
[1673928764277,3.0318057,21124.0,21123.0,0.00798533]
[1673928765014,3.5107573,21124.0,21123.0,0.00798533]
[1673928765522,3.0318057,21124.0,21123.0,0.00798533]
[1673928766021,3.5107573,21124.0,21123.0,0.00798533]
[1673928766757,3.0318057,21124.0,21123.0,0.00798533]
[1673928768250,3.5107573,21124.0,21123.0,0.00798533]
[1673928768968,3.5106973,21124.0,21123.0,0.00798533]
[1673928770249,3.98479947,21124.0,21123.0,0.00798533]
[1673928770507,4.43438119,21124.0,21123.0,0.00798533]
[1673928773035,6.09194181,21124.0,21123.0,0.00798533]
[1673928775270,5.85524181,21124.0,21123.0,0.00798533]
[1673928775500,6.33410502,21124.0,21123.0,0.00798533]
[1673928776526,5.99387339,21124.0,21123.0,0.00798533]
[1673928776804,5.04090801,21124.0,21123.0,0.00798533]
[1673928777050,4.0989106,21124.0,21123.0,0.00798533]
[1673928778886,3.9880106,21124.0,21123.0,0.00798533]
[1673928779357,0.52624231,21123.0,21122.0,0.00632224]
[1673928779606,2.38053344,21123.0,21122.0,0.00632224]
[1673928779875,2.3095783,21123.0,21122.0,0.00632224]
[1673928780121,2.3095783,21123.0,21122.0,0.24429924]
[1673928780371,2.3095783,21123.0,21122.0,0.24430124]
[1673928780638,2.04491363,21123.0,21122.0,0.00632224]
[1673928781215,2.39960518,21123.0,21122.0,0.00632224]
[1673928781737,2.04491363,21123.0,21122.0,0.00632224]
[1673928781956,2.47059344,21123.0,21122.0,0.00632224]
[1673928783362,2.04497363,21123.0,21122.0,0.00632224]
[1673928783799,2.47059344,21123.0,21122.0,0.00632224]
[1673928786043,2.04497363,21123.0,21122.0,0.00632224]
[1673928787028,2.04491363,21123.0,21122.0,0.00632224]
[1673928787736,2.47053344,21123.0,21122.0,0.00632224]
[1673928787973,2.77053344,21123.0,21122.0,0.00632224]
[1673928788200,2.34491363,21123.0,21122.0,0.00632224]
[1673928788425,2.77059619,21123.0,21122.0,0.00632224]
[1673928788664,3.60543825,21123.0,21122.0,0.00632224]
[1673928788892,3.71743825,21123.0,21122.0,0.00632224]
[1673928789124,3.14034299,21123.0,21122.0,0.00632224]
[1673928790029,2.89086063,21123.0,21122.0,0.00632224]
[1673928790254,3.36972384,21123.0,21122.0,0.00632224]
[1673928794199,2.89086063,21123.0,21122.0,0.00632224]
[1673928795528,3.36972384,21123.0,21122.0,0.00632224]
[1673928795764,3.36975133,21123.0,21122.0,0.00632224]
[1673928796025,3.36975065,21123.0,21122.0,0.00632224]
[1673928796277,3.3649628,21123.0,21122.0,0.00632224]
[1673928797041,3.84381953,21123.0,21122.0,0.00632224]
[1673928798316,3.3649628,21123.0,21122.0,0.00632224]
[1673928798823,4.08050397,21123.0,21122.0,0.00632224]
[1673928799059,4.55770566,21123.0,21122.0,0.00632224]
[1673928799365,6.3324985,21123.0,21122.0,0.00632224]
[1673928799538,5.97856628,21123.0,21122.0,0.00632224]